bitfinex/quotes_BTCUSD_20250620
["timestamp","ask_amount","ask_price","bid_price","bid_amount"]
[1750428565166,1.10211468,105730.0,105720.0,0.21009657]
[1750428565391,1.10211468,105730.0,105720.0,0.21955498]
[1750428565609,0.36951417,105730.0,105720.0,0.2456133]
[1750428565834,0.55867524,105730.0,105720.0,0.21955498]
[1750428566547,0.54921782,105730.0,105720.0,0.2006379]
[1750428566780,0.54921782,105730.0,105720.0,0.21009675]
[1750428567014,1.18793547,105730.0,105720.0,0.002]
[1750428567247,1.2098776,105730.0,105720.0,0.002]
[1750428568798,1.1784776,105730.0,105720.0,0.20063772]
[1750428569030,1.1784776,105730.0,105720.0,0.21955481]
[1750428569031,1.18793547,105730.0,105720.0,0.21955481]
[1750428569492,1.68613547,105730.0,105720.0,0.21955481]
[1750428569719,1.14269666,105730.0,105720.0,0.21955481]
[1750428569978,0.91071399,105730.0,105720.0,0.23847154]
[1750428570205,0.89179852,105730.0,105720.0,0.25497154]
[1750428570470,0.92017195,105730.0,105720.0,0.27137154]
[1750428570943,0.90125603,105730.0,105720.0,0.27137154]
[1750428571177,0.89179852,105730.0,105720.0,0.27137154]
[1750428571409,0.90125603,105730.0,105720.0,0.43089154]
[1750428571678,0.89179852,105730.0,105720.0,0.43089154]
[1750428572130,0.90125603,105730.0,105720.0,0.43089154]
[1750428572591,0.89179852,105730.0,105720.0,0.43089154]
[1750428572824,0.90125594,105730.0,105720.0,0.43089154]
[1750428573061,0.91071345,105730.0,105720.0,0.43089154]
[1750428573296,0.92962892,105730.0,105720.0,0.27137154]
[1750428573530,1.67168703,105730.0,105720.0,0.22901322]
[1750428573794,1.11879062,105730.0,105720.0,0.22901322]
[1750428574018,1.11879062,105730.0,105720.0,0.23847154]
[1750428574248,1.67168703,105730.0,105720.0,0.23847154]
[1750428574474,1.66223015,105730.0,105720.0,0.22901322]
[1750428574898,1.10933374,105730.0,105720.0,0.21955481]
[1750428575118,1.66223015,105730.0,105720.0,0.21955481]
[1750428575336,0.89179852,105730.0,105720.0,0.22901313]
[1750428575594,0.89179852,105730.0,105720.0,0.24561313]
[1750428575814,0.88234119,105730.0,105720.0,0.26131313]
[1750428576025,0.83934119,105730.0,105720.0,0.32074451]
[1750428576714,0.84879843,105730.0,105720.0,0.26131313]
[1750428576926,0.83934119,105730.0,105720.0,0.26131313]
[1750428579450,0.83934119,105730.0,105720.0,0.32131313]
[1750428579687,0.84879861,105730.0,105720.0,0.32131313]
[1750428579908,0.85825612,105730.0,105720.0,0.32131313]
[1750428580726,0.83934119,105730.0,105720.0,0.32131313]
[1750428580936,0.84879861,105730.0,105720.0,0.32131313]
[1750428581152,0.85825621,105730.0,105720.0,0.32131313]
[1750428581394,0.34114119,105730.0,105720.0,0.32131313]
[1750428581838,0.00114119,105730.0,105720.0,0.48359344]
[1750428583407,0.00114119,105730.0,105720.0,0.64307344]
[1750428587175,0.00114119,105730.0,105720.0,0.57607206]
[1750428589961,0.00114119,105730.0,105720.0,1.20451744]
[1750428590184,0.00114119,105730.0,105720.0,1.54451744]
[1750428590403,0.00114119,105730.0,105720.0,1.56340469]
[1750428590815,0.00114119,105730.0,105720.0,1.49699234]
[1750428591100,0.00114119,105730.0,105720.0,1.59126219]
[1750428591540,0.00114119,105730.0,105720.0,1.59326219]
[1750428592652,0.00114119,105730.0,105720.0,1.66868628]
[1750428593332,0.00114119,105730.0,105720.0,1.66668628]
[1750428593596,0.00214119,105730.0,105720.0,0.977246]
[1750428593843,0.00214119,105730.0,105720.0,1.136646]
[1750428594087,0.01159861,105730.0,105720.0,0.58299206]
[1750428594330,0.01159852,105730.0,105720.0,0.45541313]
[1750428594566,0.81382943,105730.0,105720.0,0.29601313]
[1750428594845,0.81382943,105730.0,105720.0,0.44595481]
[1750428595106,0.80437255,105730.0,105720.0,0.27709657]
[1750428595334,0.79243468,105730.0,105720.0,0.27709657]
[1750428595525,0.79243468,105730.0,105720.0,0.27609657]
[1750428595783,0.78297672,105730.0,105720.0,0.068]
[1750428596035,0.78397672,105730.0,105720.0,0.28109675]
[1750428596464,0.78397672,105730.0,105720.0,0.28255534]
[1750428596929,0.78397672,105730.0,105720.0,0.34209818]
[1750428597399,0.78297672,105730.0,105720.0,0.27755551]
[1750428597643,1.12297672,105730.0,105720.0,0.06]
[1750428597860,1.12297672,105730.0,105720.0,0.063]
[1750428597861,1.22433845,105730.0,105720.0,0.063]
[1750428598094,6.42809445,105730.0,105720.0,0.003]
[1750428599257,7.03099086,105730.0,105720.0,0.003]
[1750428600164,7.03099086,105730.0,105720.0,0.002]
[1750428600380,6.48009445,105730.0,105720.0,0.002]
[1750428600828,0.21759534,105700.0,105690.0,0.2271781]
[1750428601043,0.76103182,105700.0,105690.0,0.1987942]
[1750428601349,1.20839009,105700.0,105690.0,0.0001]
[1750428601564,1.22293094,105700.0,105690.0,0.0001]
[1750428601782,6.31732694,105700.0,105690.0,0.0001]
[1750428602928,6.87022335,105700.0,105690.0,0.0001]
[1750428603231,6.92022335,105700.0,105690.0,0.0021]
[1750428603475,5.67793096,105690.0,105680.0,0.0001]
[1750428603713,0.5887129,105680.0,105670.0,0.0001]
[1750428603945,6.9719815,105680.0,105670.0,0.0001]
[1750428604156,7.00923567,105680.0,105670.0,0.0001]
[1750428604851,6.95923567,105680.0,105670.0,0.00024119]
[1750428605110,7.01323567,105680.0,105670.0,0.00124119]
[1750428606203,7.01523567,105680.0,105670.0,0.00124119]
[1750428609753,6.96523567,105680.0,105670.0,0.00124119]
[1750428609967,7.01523567,105680.0,105670.0,0.00124119]
[1750428610197,6.96523567,105680.0,105670.0,0.00124119]
[1750428610421,6.92227567,105680.0,105670.0,0.00124119]
[1750428610642,0.92436685,105680.0,105670.0,0.00124119]
[1750428610875,1.10696326,105680.0,105670.0,0.00124119]
[1750428611096,2.03165967,105680.0,105670.0,0.00124119]
[1750428611997,1.82937967,105680.0,105670.0,0.00124119]
[1750428612236,2.03169967,105680.0,105670.0,0.00124119]
[1750428612695,1.44700326,105680.0,105670.0,0.00124119]
[1750428612920,1.47544026,105680.0,105670.0,0.00124119]
[1750428613140,1.44700326,105680.0,105670.0,0.00124119]
[1750428613782,1.46270326,105680.0,105670.0,0.00124119]
[1750428614463,1.46240326,105680.0,105670.0,0.00124119]
[1750428614894,2.03149967,105680.0,105670.0,0.00124119]
[1750428615547,2.08149967,105680.0,105670.0,0.00124119]
[1750428615758,1.87917967,105680.0,105670.0,0.00124119]
[1750428615939,2.08149967,105680.0,105670.0,0.00124119]
[1750428616728,7.12589567,105680.0,105670.0,0.00124119]
[1750428617848,6.02010285,105680.0,105670.0,0.00124119]
[1750428618066,7.12589567,105680.0,105670.0,0.00124119]
[1750428619347,6.32067926,105680.0,105670.0,0.00124119]
[1750428619554,6.49139926,105680.0,105670.0,0.00124119]
[1750428620012,6.49139926,105680.0,105670.0,0.19997299]
[1750428620013,1.44192378,105680.0,105670.0,0.19997299]
[1750428620237,1.44192378,105680.0,105670.0,0.00124119]
[1750428620238,1.31598923,105680.0,105670.0,0.00124119]
[1750428620498,1.29706552,105680.0,105670.0,0.00124119]
[1750428621837,1.25414552,105680.0,105670.0,0.00124119]
[1750428622061,1.45646552,105680.0,105670.0,0.00124119]
[1750428622717,1.45646552,105680.0,105670.0,0.19997308]
[1750428622937,1.45646552,105680.0,105670.0,0.00124119]
[1750428622938,1.44700335,105680.0,105670.0,0.00124119]
[1750428624049,1.25970758,105680.0,105670.0,0.01754119]
[1750428624349,1.25970758,105680.0,105670.0,0.00124119]
[1750428624572,1.21678758,105680.0,105670.0,0.00124119]
[1750428624790,1.41910758,105680.0,105670.0,0.00124119]
[1750428625456,2.01571233,105680.0,105670.0,0.00124119]
[1750428625690,2.03151233,105680.0,105670.0,0.00124119]
[1750428627566,1.47861592,105680.0,105670.0,0.00124119]
[1750428628258,2.03151233,105680.0,105670.0,0.00124119]
[1750428628718,1.47861592,105680.0,105670.0,0.00124119]
[1750428629426,1.48520591,105680.0,105670.0,0.00124119]
[1750428630087,1.48520653,105680.0,105670.0,0.00124119]
[1750428630797,1.50770354,105680.0,105670.0,0.00124119]
[1750428631027,7.09840534,105680.0,105670.0,0.00124119]
[1750428631263,7.15499601,105680.0,105670.0,0.00124119]
[1750428631491,7.1725695,105680.0,105670.0,0.00124119]
[1750428632166,7.20073082,105680.0,105670.0,0.00124119]
[1750428632409,7.15499601,105680.0,105670.0,0.00124119]
[1750428632635,7.20073702,105680.0,105670.0,0.00124119]
[1750428633477,6.0949442,105680.0,105670.0,0.00124119]
[1750428633688,7.20073702,105680.0,105670.0,0.00124119]
[1750428633903,7.20074039,105680.0,105670.0,0.00124119]
[1750428635901,7.20453139,105680.0,105670.0,0.00124119]
[1750428636550,7.20453227,105680.0,105670.0,0.00124119]
[1750428636765,7.20453322,105680.0,105670.0,0.00124119]
[1750428637503,6.23226497,105670.0,105660.0,0.0001]
[1750428637736,6.61169323,105670.0,105660.0,0.0005736]
[1750428637951,6.64917216,105670.0,105660.0,0.0005736]
[1750428638170,0.60329138,105660.0,105650.0,0.0001]
[1750428638391,6.51551306,105660.0,105650.0,0.0001]
[1750428638611,5.69770618,105650.0,105640.0,0.0001]
[1750428638853,7.43426874,105650.0,105640.0,0.0001]
[1750428639513,7.43425924,105650.0,105640.0,0.0001]
[1750428640205,7.43725924,105650.0,105640.0,0.0011]
[1750428640630,7.40914248,105650.0,105640.0,0.0011]
[1750428641951,7.3915806,105650.0,105640.0,0.0011]
[1750428643541,7.40910073,105650.0,105640.0,0.0011]
[1750428643768,7.3915806,105650.0,105640.0,0.0011]
[1750428645289,7.39156031,105650.0,105640.0,0.0011]
[1750428646881,6.24130677,105630.0,105620.0,0.0001]
[1750428647116,6.50251107,105630.0,105620.0,0.0001]
[1750428647371,6.57490827,105630.0,105620.0,0.0001]
[1750428647811,6.55251107,105630.0,105620.0,0.0001]
[1750428648252,6.55298198,105630.0,105620.0,0.0001]
[1750428648477,6.50298198,105630.0,105620.0,0.0001]
[1750428648674,6.58143598,105630.0,105620.0,0.0001]
[1750428650069,0.56287353,105600.0,105590.0,0.0331]
[1750428650307,1.41328887,105600.0,105590.0,0.0001]
[1750428651035,1.42276101,105600.0,105590.0,0.0001]
[1750428651258,1.97565742,105600.0,105590.0,0.0001]
[1750428651697,1.97665742,105600.0,105590.0,0.0001]
[1750428651919,1.97765742,105600.0,105590.0,0.0001]
[1750428652158,1.42476101,105600.0,105590.0,0.0001]
[1750428652649,1.4529984,105600.0,105590.0,0.0001]
[1750428653670,0.90010199,105600.0,105590.0,0.0001]
[1750428654106,1.4529984,105600.0,105590.0,0.0001]
[1750428654564,1.4529984,105600.0,105590.0,0.0312]
[1750428654565,0.69796375,105600.0,105590.0,0.0312]
[1750428654778,0.84789451,105600.0,105590.0,0.23008246]
[1750428655021,0.342,105600.0,105590.0,0.25849315]
[1750428655272,0.36093812,105600.0,105590.0,0.25849315]
[1750428655762,0.37040754,105600.0,105590.0,0.25849315]
[1750428656206,0.01993812,105600.0,105590.0,0.25849315]
[1750428656477,0.001,105600.0,105590.0,0.25849315]
[1750428656709,0.001,105600.0,105590.0,0.26149315]
[1750428656710,0.002,105600.0,105590.0,0.26149315]
[1750428657147,0.01046888,105600.0,105590.0,0.26149315]
[1750428657375,0.001,105600.0,105590.0,0.26149315]
[1750428657605,0.03787286,105610.0,105600.0,0.24850192]
[1750428657845,0.37787286,105610.0,105600.0,0.24850192]
[1750428658304,0.38734157,105610.0,105600.0,0.24850192]
[1750428658518,0.37787286,105610.0,105600.0,0.24850192]
[1750428658726,1.12961407,105610.0,105600.0,0.22956353]
[1750428658960,0.56724967,105610.0,105600.0,0.24850228]
[1750428659183,1.12014608,105610.0,105600.0,0.24850228]
[1750428659413,1.12014608,105610.0,105600.0,0.22009393]
[1750428659629,0.55778159,105610.0,105600.0,0.22956362]
[1750428659801,1.10120974,105610.0,105600.0,0.23903322]
[1750428660367,0.54931333,105610.0,105600.0,0.24203286]
[1750428660611,0.54931333,105610.0,105600.0,0.2515021]
[1750428660840,0.55031333,105610.0,105600.0,0.2535021]
[1750428661293,0.36093733,105610.0,105600.0,0.26113125]
[1750428661520,0.37040541,105610.0,105600.0,0.27060031]
[1750428661752,0.36093625,105610.0,105600.0,0.27060031]
[1750428661982,0.002,105610.0,105600.0,0.43000031]
[1750428662969,0.002,105610.0,105600.0,0.52527924]
[1750428663204,0.002,105610.0,105600.0,1.07917565]
[1750428663412,0.00047091,105630.0,105620.0,0.21776069]
[1750428663630,0.00047091,105630.0,105620.0,0.58406947]
[1750428664094,0.00047091,105630.0,105620.0,1.13696588]
[1750428664305,0.00047091,105630.0,105620.0,1.15326588]
[1750428665196,0.00247091,105630.0,105620.0,1.15626588]
[1750428665591,0.00247091,105630.0,105620.0,1.21626588]
[1750428666418,0.00347091,105630.0,105620.0,1.22226588]
[1750428666638,0.00347091,105630.0,105620.0,0.41473962]
[1750428666840,0.00347091,105630.0,105620.0,0.57409962]
[1750428667088,0.00347091,105630.0,105620.0,1.12699603]
[1750428667944,0.00347091,105630.0,105620.0,0.57409962]
[1750428668155,0.00347091,105630.0,105620.0,1.12699603]
[1750428668369,0.00347091,105630.0,105620.0,1.22226588]
[1750428669979,0.52658891,105670.0,105660.0,0.24847853]
[1750428670182,0.52658891,105670.0,105660.0,0.41740359]
[1750428670183,0.85712567,105670.0,105660.0,0.41740359]
[1750428670399,0.85712558,105670.0,105660.0,0.41740359]
[1750428670609,0.86658855,105670.0,105660.0,0.47901922]
[1750428670822,0.86658855,105670.0,105660.0,0.41740359]
[1750428671240,0.8780517,105670.0,105660.0,0.41840359]
[1750428671441,0.88751503,105670.0,105660.0,0.41840359]
[1750428671851,0.8780517,105670.0,105660.0,0.41840359]
[1750428672059,1.05785783,105670.0,105660.0,0.24015629]
[1750428672279,1.60129127,105670.0,105660.0,0.35921207]
[1750428672481,1.60129127,105670.0,105660.0,0.36867629]
[1750428673106,1.60129127,105670.0,105660.0,0.00114137]
[1750428673327,1.7177479,105670.0,105660.0,0.00114137]
[1750428673955,1.7337479,105670.0,105660.0,0.00114137]
[1750428675666,1.18085149,105670.0,105660.0,0.00114137]
[1750428675871,1.9358679,105670.0,105660.0,0.00114137]
[1750428676879,1.7337479,105670.0,105660.0,0.00114137]
[1750428677089,1.9358679,105670.0,105660.0,0.00114137]
[1750428678507,1.9047679,105670.0,105660.0,0.00114137]
[1750428679120,1.9202679,105670.0,105660.0,0.00114137]
[1750428679908,1.36737149,105670.0,105660.0,0.00114137]
[1750428680123,1.9047679,105670.0,105660.0,0.00114137]
[1750428682038,1.9202679,105670.0,105660.0,0.00114137]
[1750428682490,1.9047679,105670.0,105660.0,0.00114137]
[1750428682922,1.9199279,105670.0,105660.0,0.00114137]
[1750428683456,1.36703149,105670.0,105660.0,0.00114137]
[1750428683691,1.9362279,105670.0,105660.0,0.00114137]
[1750428683917,7.31235571,105670.0,105660.0,0.00114137]
[1750428684145,1.11063648,105630.0,105620.0,0.23939378]
[1750428684371,0.36840199,105620.0,105610.0,0.20829696]
[1750428684570,0.9212984,105620.0,105610.0,0.24983604]
[1750428684818,1.12012491,105620.0,105610.0,0.22376796]
[1750428685036,1.21100979,105620.0,105610.0,0.00047091]
[1750428685920,1.37128979,105620.0,105610.0,0.00647091]
[1750428686080,1.37128979,105620.0,105610.0,0.00047091]
[1750428686292,1.37028979,105620.0,105610.0,0.00047091]
[1750428686500,1.40328979,105620.0,105610.0,0.00147091]
[1750428687440,1.40228979,105620.0,105610.0,0.00347091]
[1750428687856,6.49668579,105620.0,105610.0,0.00347091]
[1750428688065,6.72404579,105620.0,105610.0,0.00347091]
[1750428688307,6.72404579,105620.0,105610.0,0.00047091]
[1750428689541,6.72404579,105620.0,105610.0,0.00035865]
[1750428689542,6.72904579,105620.0,105610.0,0.00035865]
[1750428689772,0.56287353,105600.0,105590.0,0.0001]
[1750428689953,1.91140887,105600.0,105590.0,0.0002415]
[1750428691241,1.98210528,105600.0,105590.0,0.0002415]
[1750428691458,1.99770528,105600.0,105590.0,0.0002415]
[1750428691672,1.99870528,105600.0,105590.0,0.0002415]
[1750428692547,5.59781913,105590.0,105580.0,0.0001]
[1750428692765,6.27759447,105590.0,105580.0,0.00024147]
[1750428693957,6.28694789,105590.0,105580.0,0.00124147]
[1750428694163,6.28994789,105590.0,105580.0,0.00224147]
[1750428695269,0.86321548,105590.0,105580.0,0.00224147]
[1750428695471,1.41611189,105590.0,105580.0,0.00224147]
[1750428696534,1.21395189,105590.0,105580.0,0.00224147]
[1750428696656,1.91431189,105590.0,105580.0,0.00224147]
[1750428697934,1.93081189,105590.0,105580.0,0.00224147]
[1750428699050,1.71215189,105590.0,105580.0,0.00224147]
[1750428699268,1.91431189,105590.0,105580.0,0.00224147]
[1750428701048,1.93011189,105590.0,105580.0,0.00224147]
[1750428701268,1.94521189,105590.0,105580.0,0.00224147]
[1750428702538,1.44701189,105590.0,105580.0,0.00224147]
[1750428703193,1.44701189,105590.0,105550.0,0.0001]
[1750428703194,0.54841163,105560.0,105550.0,0.0001]
[1750428703437,0.54841163,105560.0,105550.0,0.00888932]
[1750428703438,1.96622423,105560.0,105550.0,0.00888932]
[1750428703657,1.99352716,105560.0,105550.0,0.0001]
[1750428703913,1.99842423,105560.0,105550.0,0.0001]
[1750428704596,7.04282023,105560.0,105550.0,0.0041]
[1750428705320,7.04582023,105560.0,105550.0,0.0051]
[1750428705540,7.04282023,105560.0,105550.0,0.0001]
[1750428705757,7.04382023,105560.0,105550.0,0.0001]
[1750428706005,7.04882023,105560.0,105550.0,0.0011]
[1750428706223,7.09882023,105560.0,105550.0,2.514e-05]
[1750428706877,7.04882023,105560.0,105550.0,2.514e-05]
[1750428707096,0.53895765,105550.0,105540.0,0.0001]
[1750428707356,6.56457478,105550.0,105540.0,0.00888794]
[1750428707572,6.56457478,105550.0,105540.0,0.00889401]
[1750428708014,6.56457478,105550.0,105540.0,0.0088941]
[1750428708227,6.56457478,105550.0,105540.0,0.0001]
[1750428708457,6.56457478,105550.0,105540.0,0.0011]
[1750428708706,6.56557478,105550.0,105540.0,0.0021]
[1750428709149,6.56457478,105550.0,105540.0,0.0001]
[1750428709370,6.26246984,105550.0,105540.0,0.0001]
[1750428709579,1.41287384,105550.0,105540.0,0.00988806]
[1750428710017,0.85997743,105550.0,105540.0,0.00988806]
[1750428710222,1.41287384,105550.0,105540.0,0.00988806]
[1750428710443,1.44191604,105550.0,105540.0,0.00988806]
[1750428710879,1.23971604,105550.0,105540.0,0.00988806]
[1750428711103,1.44199604,105550.0,105540.0,0.04258806]
[1750428711334,1.44199604,105550.0,105540.0,0.02648806]
[1750428711792,1.44199604,105550.0,105540.0,0.0177]
[1750428712057,1.44199604,105550.0,105540.0,0.0098941]
[1750428712823,1.23971604,105550.0,105540.0,0.20887079]
[1750428713070,0.56690538,105550.0,105540.0,0.25105932]
[1750428713291,1.11980179,105550.0,105540.0,0.25105932]
[1750428713503,1.11980179,105550.0,105540.0,0.27000903]
[1750428713750,0.36794701,105550.0,105540.0,0.27948357]
[1750428713967,0.62869257,105550.0,105540.0,0.2706753]
[1750428714182,0.62569257,105550.0,105540.0,0.26120085]
[1750428714408,0.61969257,105550.0,105540.0,0.26020085]
[1750428714863,0.00947283,105560.0,105550.0,0.24113138]
[1750428715099,0.41064834,105570.0,105560.0,0.24111181]
[1750428715326,1.39882368,105570.0,105560.0,0.23163898]
[1750428715551,1.38935166,105570.0,105560.0,0.0327]
[1750428715775,1.18711166,105570.0,105560.0,0.0327]
[1750428715987,1.22995166,105570.0,105560.0,0.24111181]
[1750428716243,0.06178413,105570.0,105560.0,0.25058446]
[1750428716454,0.41125579,105570.0,105560.0,0.25058446]
[1750428716925,0.40178368,105570.0,105560.0,0.25058446]
[1750428717630,0.40178359,105570.0,105560.0,0.25058446]
[1750428717878,0.19890049,105580.0,105570.0,0.21786381]
[1750428718124,0.92064937,105590.0,105580.0,0.20837252]
[1750428718349,0.95481764,105590.0,105580.0,0.25911433]
[1750428718581,0.00014122,105590.0,105580.0,0.25911433]
[1750428718825,0.00014122,105590.0,105580.0,0.30491771]
[1750428719041,0.00014122,105590.0,105580.0,0.40019664]
[1750428719285,0.00014122,105590.0,105580.0,0.55959664]
[1750428719510,0.00014122,105590.0,105580.0,0.56059664]
[1750428719730,0.00214122,105590.0,105580.0,0.51579326]
[1750428720190,0.00014122,105590.0,105580.0,0.51479326]
[1750428721050,0.00014122,105590.0,105580.0,0.51379326]
[1750428721293,1.11085992,105590.0,105580.0,0.22322981]
[1750428721519,1.10139041,105590.0,105580.0,0.002]
[1750428721734,1.10239041,105590.0,105580.0,0.004]
[1750428721950,1.22741019,105590.0,105580.0,0.004]
[1750428722386,1.22741019,105590.0,105580.0,0.002]
[1750428722387,1.24321019,105590.0,105580.0,0.002]
[1750428722607,0.55786381,105570.0,105560.0,0.20841181]
[1750428722837,0.54841181,105560.0,105550.0,0.23360556]
[1750428723073,0.54841181,105560.0,105550.0,0.20843174]
[1750428723286,1.19658715,105560.0,105550.0,0.19895783]
[1750428723513,1.23942715,105560.0,105550.0,0.20843174]
[1750428723733,0.41125939,105560.0,105550.0,0.29685284]
[1750428723991,1.1536215,105560.0,105550.0,0.32795284]
[1750428724195,0.60072509,105560.0,105550.0,0.30900556]
[1750428724436,1.23942742,105560.0,105550.0,0.28353192]
[1750428724651,1.23942742,105560.0,105550.0,0.26843192]
[1750428724861,0.67705791,105560.0,105550.0,0.27790574]
[1750428725079,0.41125822,105560.0,105550.0,0.31797929]
[1750428725494,0.41225822,105560.0,105550.0,0.32097929]
[1750428725916,0.34947247,105560.0,105550.0,0.31897929]
[1750428726131,0.36094512,105560.0,105550.0,0.31890422]
[1750428726601,0.37041795,105560.0,105550.0,0.31890422]
[1750428726836,0.36094512,105560.0,105550.0,0.31890422]
[1750428727049,0.35147247,105560.0,105550.0,0.31890422]
[1750428727451,0.342,105560.0,105550.0,0.31890422]
[1750428727664,0.35147265,105560.0,105550.0,0.31890422]
[1750428727874,0.36094548,105560.0,105550.0,0.31890422]
[1750428728083,0.35147265,105560.0,105550.0,0.31890422]
[1750428728283,0.36094548,105560.0,105550.0,0.31890422]
[1750428728493,0.342,105560.0,105550.0,0.31890422]
[1750428728710,0.002,105560.0,105550.0,1.03484159]
[1750428728966,0.002,105560.0,105550.0,1.19460159]
[1750428730036,0.8667511,105590.0,105580.0,0.2490432]
[1750428730248,0.86675101,105590.0,105580.0,0.2490432]
[1750428730467,1.07510343,105590.0,105580.0,0.23957234]
[1750428730704,1.05616423,105590.0,105580.0,0.19890121]
[1750428730905,1.60906064,105590.0,105580.0,0.18942981]
[1750428731129,0.34,105580.0,105570.0,0.23294749]
[1750428731332,0.37788398,105580.0,105570.0,0.23294749]
[1750428731580,0.56731379,105580.0,105570.0,0.19890381]
[1750428731793,0.37788398,105580.0,105570.0,0.21784749]
[1750428732008,1.12021092,105580.0,105570.0,0.19890363]
[1750428732213,0.35894199,105580.0,105570.0,0.21784767]
[1750428732428,0.3684133,105580.0,105570.0,0.21784767]
[1750428732624,0.35894199,105580.0,105570.0,0.21784767]
[1750428732853,0.36841321,105580.0,105570.0,0.24924767]
[1750428733287,0.34947068,105580.0,105570.0,0.24924767]
[1750428733495,0.34,105580.0,105570.0,0.24924767]
[1750428733935,0.341,105580.0,105570.0,0.25324767]
[1750428734275,0.001,105580.0,105570.0,0.96656174]
[1750428736949,0.001,105580.0,105570.0,1.02656174]
[1750428738991,0.001,105580.0,105570.0,1.19110259]
[1750428740139,0.001,105580.0,105570.0,1.19210259]
[1750428740572,0.001,105580.0,105570.0,1.39506259]
[1750428740795,0.001,105580.0,105570.0,1.39510259]
[1750428741705,0.001,105580.0,105570.0,0.47466533]
[1750428741921,0.001,105580.0,105570.0,0.5724066]
[1750428743002,0.001,105580.0,105570.0,1.12530301]
[1750428743427,0.001,105580.0,105570.0,1.12422797]
[1750428744291,0.001,105580.0,105570.0,1.12322797]
[1750428744501,0.001,105580.0,105570.0,1.21849782]
[1750428745985,0.001,105580.0,105570.0,1.21865782]
[1750428747286,0.001,105580.0,105570.0,0.66576141]
[1750428747507,0.001,105580.0,105570.0,1.21865782]
[1750428749855,0.001,105580.0,105570.0,1.05861782]
[1750428750076,0.001,105580.0,105570.0,1.21881782]
[1750428751005,0.001,105580.0,105570.0,0.66592141]
[1750428751247,0.001,105580.0,105570.0,1.21881782]
[1750428751686,0.001,105580.0,105570.0,1.21877782]
[1750428751958,0.001,105580.0,105570.0,1.05861782]
[1750428752204,0.001,105580.0,105570.0,1.21873782]
[1750428752418,0.001,105580.0,105570.0,1.21869782]
[1750428753323,0.001,105580.0,105570.0,0.50572141]
[1750428753538,0.001,105580.0,105570.0,0.66572141]
[1750428754019,0.001,105580.0,105570.0,1.21861782]
[1750428754575,0.001,105580.0,105570.0,1.05861782]
[1750428754809,0.001,105580.0,105570.0,1.21925782]
[1750428755672,0.001,105580.0,105570.0,1.12398797]
[1750428756242,0.001,105580.0,105570.0,1.12394797]
[1750428757402,0.001,105580.0,105570.0,1.28848882]
[1750428758038,0.001,105580.0,105570.0,1.33848882]
[1750428758505,0.001,105580.0,105570.0,1.33548882]
[1750428758741,0.00014122,105590.0,105580.0,0.2178432]
[1750428758897,0.00014122,105590.0,105580.0,0.89671854]
[1750428760511,0.00014122,105590.0,105580.0,0.91125939]
[1750428761098,0.00114122,105590.0,105580.0,0.91925939]
[1750428761302,0.00214122,105590.0,105580.0,0.92625939]
[1750428761544,0.00214122,105590.0,105580.0,1.02152924]
[1750428762199,0.00012099,105590.0,105580.0,1.71152924]
[1750428762605,0.00012099,105590.0,105580.0,1.81136924]
[1750428762810,0.00012099,105590.0,105580.0,1.36152924]
[1750428763772,0.00012099,105590.0,105580.0,1.39042168]
[1750428764176,0.00012099,105590.0,105580.0,1.24004083]
[1750428764383,0.00012099,105590.0,105580.0,1.03588083]
[1750428764580,0.00012099,105590.0,105580.0,1.24012083]
[1750428764795,0.00012099,105590.0,105580.0,1.19552777]
[1750428768537,0.00012099,105590.0,105580.0,3.43468662]
[1750428768750,5e-05,105630.0,105620.0,0.7706571]
[1750428769004,5e-05,105640.0,105630.0,0.21774007]
[1750428769226,5e-05,105640.0,105630.0,0.88251541]
[1750428769445,0.00052225,105640.0,105630.0,0.89771541]
[1750428769718,0.00052225,105640.0,105630.0,0.92614541]
[1750428771274,5e-05,105650.0,105640.0,0.21771947]
[1750428771490,0.00019156,105650.0,105640.0,1.12176466]
[1750428772757,0.00019156,105650.0,105640.0,1.12376466]
[1750428773682,0.00019156,105650.0,105640.0,1.15526466]
[1750428773934,0.00019156,105650.0,105640.0,1.12376466]
[1750428774593,0.00119156,105650.0,105640.0,1.12476466]
[1750428775071,0.00019156,105650.0,105640.0,1.12376466]
[1750428775296,0.00119156,105650.0,105640.0,1.16076466]
[1750428775512,0.00119156,105650.0,105640.0,1.16376466]
[1750428776128,0.00119156,105650.0,105640.0,1.74532536]
[1750428776347,0.00119156,105650.0,105640.0,1.75986621]
[1750428777743,0.00119156,105650.0,105640.0,1.7587947]
[1750428778939,0.00119156,105650.0,105640.0,1.8586347]
[1750428779184,0.00119156,105650.0,105640.0,1.7587947]
[1750428779929,0.00119156,105650.0,105640.0,1.04529829]
[1750428780172,0.00119156,105650.0,105640.0,1.24917829]
[1750428780762,0.00119156,105650.0,105640.0,0.69628188]
[1750428780989,0.00119156,105650.0,105640.0,1.24917829]
[1750428781719,0.00119156,105650.0,105640.0,1.8020747]
[1750428782142,0.00119156,105650.0,105640.0,2.1420747]
[1750428782360,0.00119156,105650.0,105640.0,2.9773277]
[1750428782562,0.00119156,105650.0,105640.0,2.9243767]
[1750428782773,0.00119156,105650.0,105640.0,3.2743767]
[1750428782977,0.00119156,105650.0,105640.0,3.1713327]
[1750428783196,0.00119156,105650.0,105640.0,3.0463277]
[1750428783633,0.00119156,105650.0,105640.0,2.1420747]
[1750428783849,0.00019156,105650.0,105640.0,0.63982103]
[1750428784267,0.00119156,105650.0,105640.0,0.66182103]
[1750428784909,0.00119156,105650.0,105640.0,1.21471744]
[1750428785776,0.00019156,105650.0,105640.0,1.20271744]
[1750428785995,0.00019156,105650.0,105640.0,1.22411744]
[1750428786205,0.00019156,105650.0,105640.0,1.77901385]
[1750428786421,0.00019156,105650.0,105640.0,1.93401385]
[1750428786659,0.00019156,105650.0,105640.0,1.9485547]
[1750428787294,0.00019156,105650.0,105640.0,3.1193867]
[1750428787500,0.00019156,105650.0,105640.0,3.4593867]
[1750428788135,0.00019156,105650.0,105640.0,2.8214207]
[1750428788998,0.00019156,105650.0,105640.0,2.8194207]
[1750428789425,0.00119156,105650.0,105640.0,1.72062788]
[1750428789649,0.00119156,105650.0,105640.0,1.71562788]
[1750428789916,0.00119156,105650.0,105640.0,2.8214207]
[1750428790123,0.00119156,105650.0,105640.0,2.8294207]
[1750428790347,3.8,105670.0,105660.0,0.21767826]
[1750428790568,3.8,105670.0,105660.0,1.1071432]
[1750428790793,3.86531033,105670.0,105660.0,1.1071432]
[1750428791026,3.83732019,105670.0,105660.0,1.1071432]
[1750428791243,3.8,105670.0,105660.0,1.0910432]
[1750428792804,3.805,105670.0,105660.0,1.0746432]
[1750428793461,3.806,105670.0,105660.0,1.0746432]
[1750428794831,3.806,105670.0,105660.0,1.0744432]
[1750428795031,3.8369,105670.0,105660.0,0.52146679]
[1750428795513,3.8369,105670.0,105660.0,0.36054679]